Workbook

Sheet Feuil1
A1: Time | B1: vWheelRear | C1: Abs_Roll | D1: 0 | E1: 50 | F1: 100 | G1: 200 | H1: 300 | I1: Valeur CoeffA | J1: Valeur CoeffC
A2: 0 | B2: 232.6 | C2: 8.65 | D2: =-0.0162*C2^2+329.5 -> 328.2878755 | E2: =-0.0162*C2^2+329.6 -> 328.3878755 | F2: =-0.0162*C2^2+329.7 -> 328.4878755 | G2: =-0.0162*C2^2+330 -> 328.7878755 | H2: =-0.0162*C2^2+330.3 -> 329.0878755 | I2: 0.002706896552 | J2: 328.2559789
A3: 0.005 | B3: 232.6 | C3: 8.65 | D3: =-0.0162*C3^2+329.5 -> 328.2878755 | E3: =-0.0162*C3^2+329.6 -> 328.3878755 | F3: =-0.0162*C3^2+329.7 -> 328.4878755 | G3: =-0.0162*C3^2+330 -> 328.7878755 | H3: =-0.0162*C3^2+330.3 -> 329.0878755
A4: 0.01 | B4: 232.6 | C4: 8.75 | D4: 328.2596875 | E4: 328.3596875 | F4: 328.4596875 | G4: 328.7596875 | H4: 329.0596875
A5: 0.015 | B5: 232.6 | C5: 8.75 | D5: 328.2596875 | E5: 328.3596875 | F5: 328.4596875 | G5: 328.7596875 | H5: 329.0596875
A6: 0.02 | B6: 232.9 | C6: 8.8 | D6: 328.245472 | E6: 328.345472 | F6: 328.445472 | G6: 328.745472 | H6: 329.045472
A7: 0.025 | B7: 232.9 | C7: 8.85 | D7: 328.2311755 | E7: 328.3311755 | F7: 328.4311755 | G7: 328.7311755 | H7: 329.0311755
A8: 0.03 | B8: 233.3 | C8: 8.9 | D8: 328.216798 | E8: 328.316798 | F8: 328.416798 | G8: 328.716798 | H8: 329.016798
A9: 0.035 | B9: 233.3 | C9: 8.95 | D9: 328.2023395 | E9: 328.3023395 | F9: 328.4023395 | G9: 328.7023395 | H9: 329.0023395
A10: 0.04 | B10: 233.3 | C10: 9 | D10: 328.1878 | E10: 328.2878 | F10: 328.3878 | G10: 328.6878 | H10: 328.9878
A11: 0.045 | B11: 233.3 | C11: 9 | D11: 328.1878 | E11: 328.2878 | F11: 328.3878 | G11: 328.6878 | H11: 328.9878
A12: 0.05 | B12: 233.6 | C12: 9.1 | D12: 328.158478 | E12: 328.258478 | F12: 328.358478 | G12: 328.658478 | H12: 328.958478
A13: 0.055 | B13: 233.6 | C13: 9.1 | D13: 328.158478 | E13: 328.258478 | F13: 328.358478 | G13: 328.658478 | H13: 328.958478
A14: 0.06 | B14: 233.6 | C14: 9.2 | D14: 328.128832 | E14: 328.228832 | F14: 328.328832 | G14: 328.628832 | H14: 328.928832
A15: 0.065 | B15: 233.6 | C15: 9.2 | D15: 328.128832 | E15: 328.228832 | F15: 328.328832 | G15: 328.628832 | H15: 328.928832
A16: 0.07 | B16: 234 | C16: 9.3 | D16: 328.098862 | E16: 328.198862 | F16: 328.298862 | G16: 328.598862 | H16: 328.898862
A17: 0.075 | B17: 234 | C17: 9.3 | D17: 328.098862 | E17: 328.198862 | F17: 328.298862 | G17: 328.598862 | H17: 328.898862
A18: 0.08 | B18: 234 | C18: 9.3 | D18: 328.098862 | E18: 328.198862 | F18: 328.298862 | G18: 328.598862 | H18: 328.898862
A19: 0.085 | B19: 234 | C19: 9.35 | D19: 328.0837555 | E19: 328.1837555 | F19: 328.2837555 | G19: 328.5837555 | H19: 328.8837555
A20: 0.09 | B20: 234 | C20: 9.4 | D20: 328.068568 | E20: 328.168568 | F20: 328.268568 | G20: 328.568568 | H20: 328.868568
A21: 0.095 | B21: 234 | C21: 9.4 | D21: 328.068568 | E21: 328.168568 | F21: 328.268568 | G21: 328.568568 | H21: 328.868568
A22: 0.1 | B22: 234.4 | C22: 9.4 | D22: 328.068568 | E22: 328.168568 | F22: 328.268568 | G22: 328.568568 | H22: 328.868568
A23: 0.105 | B23: 234.4 | C23: 9.4 | D23: 328.068568 | E23: 328.168568 | F23: 328.268568 | G23: 328.568568 | H23: 328.868568
A24: 0.11 | B24: 234.7 | C24: 9.5 | D24: 328.03795 | E24: 328.13795 | F24: 328.23795 | G24: 328.53795 | H24: 328.83795
A25: 0.115 | B25: 234.7 | C25: 9.5 | D25: 328.03795 | E25: 328.13795 | F25: 328.23795 | G25: 328.53795 | H25: 328.83795
A26: 0.12 | B26: 234.7 | C26: 9.6 | D26: 328.007008 | E26: 328.107008 | F26: 328.207008 | G26: 328.507008 | H26: 328.807008
A27: 0.125 | B27: 234.7 | C27: 9.6 | D27: 328.007008 | E27: 328.107008 | F27: 328.207008 | G27: 328.507008 | H27: 328.807008
A28: 0.13 | B28: 235.1 | C28: 9.6 | D28: 328.007008 | E28: 328.107008 | F28: 328.207008 | G28: 328.507008 | H28: 328.807008
A29: 0.135 | B29: 235.1 | C29: 9.65 | D29: 327.9914155 | E29: 328.0914155 | F29: 328.1914155 | G29: 328.4914155 | H29: 328.7914155
A30: 0.14 | B30: 235.4 | C30: 9.65 | D30: 327.9914155 | E30: 328.0914155 | F30: 328.1914155 | G30: 328.4914155 | H30: 328.7914155
A31: 0.145 | B31: 235.4 | C31: 9.65 | F31: 328.1914155 | G31: 328.4914155 | H31: 328.7914155
A32: 0.15 | B32: 235.4 | C32: 9.6 | D32: 328.007008 | E32: 328.107008 | F32: 328.207008 | G32: 328.507008 | H32: 328.807008
A33: 0.155 | B33: 235.4 | C33: 9.65 | D33: 327.9914155 | E33: 328.0914155 | F33: 328.1914155 | G33: 328.4914155 | H33: 328.7914155
A34: 0.16 | B34: 235.8 | C34: 9.65 | D34: 327.9914155 | E34: 328.0914155 | F34: 328.1914155 | G34: 328.4914155 | H34: 328.7914155
A35: 0.165 | B35: 235.8 | C35: 9.65 | D35: 327.9914155 | E35: 328.0914155 | F35: 328.1914155 | G35: 328.4914155 | H35: 328.7914155
A36: 0.17 | B36: 235.8 | C36: 9.65 | D36: 327.9914155 | E36: 328.0914155 | F36: 328.1914155 | G36: 328.4914155 | H36: 328.7914155
A37: 0.175 | B37: 235.8 | C37: 9.65 | D37: 327.9914155 | E37: 328.0914155 | F37: 328.1914155 | G37: 328.4914155 | H37: 328.7914155
A38: 0.18 | B38: 235.8 | C38: 9.65 | D38: 327.9914155 | E38: 328.0914155 | F38: 328.1914155 | G38: 328.4914155 | H38: 328.7914155
A39: 0.185 | B39: 235.8 | C39: 9.65 | D39: 327.9914155 | E39: 328.0914155 | F39: 328.1914155 | G39: 328.4914155 | H39: 328.7914155
A40: 0.19 | B40: 235.8 | C40: 9.7 | D40: 327.975742 | E40: 328.075742 | F40: 328.175742 | G40: 328.475742 | H40: 328.775742
A41: 0.195 | B41: 235.8 | C41: 9.7 | D41: 327.975742 | E41: 328.075742 | F41: 328.175742 | G41: 328.475742 | H41: 328.775742
A42: 0.2 | B42: 235.8 | C42: 9.7 | D42: 327.975742 | E42: 328.075742 | F42: 328.175742 | G42: 328.475742 | H42: 328.775742
A43: 0.205 | B43: 235.8 | C43: 9.7 | D43: 327.975742 | E43: 328.075742 | F43: 328.175742 | G43: 328.475742 | H43: 328.775742
A44: 0.21 | B44: 235.8 | C44: 9.7 | D44: 327.975742 | E44: 328.075742 | F44: 328.175742 | G44: 328.475742 | H44: 328.775742
A45: 0.215 | B45: 235.8 | C45: 9.7 | D45: 327.975742 | E45: 328.075742 | F45: 328.175742 | G45: 328.475742 | H45: 328.775742
A46: 0.22 | B46: 235.8 | C46: 9.75 | D46: 327.9599875 | E46: 328.0599875 | F46: 328.1599875 | G46: 328.4599875 | H46: 328.7599875
A47: 0.225 | B47: 235.8 | C47: 9.75 | D47: 327.9599875 | E47: 328.0599875 | F47: 328.1599875 | G47: 328.4599875 | H47: 328.7599875
A48: 0.23 | B48: 235.8 | C48: 9.75 | D48: 327.9599875 | E48: 328.0599875 | F48: 328.1599875 | G48: 328.4599875 | H48: 328.7599875
A49: 0.235 | B49: 235.8 | C49: 9.75 | D49: 327.9599875 | E49: 328.0599875 | F49: 328.1599875 | G49: 328.4599875 | H49: 328.7599875
A50: 0.24 | B50: 236.2 | C50: 9.75 | D50: 327.9599875 | E50: 328.0599875 | F50: 328.1599875 | G50: 328.4599875 | H50: 328.7599875
A51: 0.245 | B51: 236.2 | C51: 9.75 | D51: 327.9599875 | E51: 328.0599875 | F51: 328.1599875 | G51: 328.4599875 | H51: 328.7599875
A52: 0.25 | B52: 236.5 | C52: 9.75 | D52: 327.9599875 | E52: 328.0599875 | F52: 328.1599875 | G52: 328.4599875 | H52: 328.7599875
A53: 0.255 | B53: 236.5 | C53: 9.75 | D53: 327.9599875 | E53: 328.0599875 | F53: 328.1599875 | G53: 328.4599875 | H53: 328.7599875
A54: 0.26 | B54: 236.5 | C54: 9.8 | D54: 327.944152 | E54: 328.044152 | F54: 328.144152 | G54: 328.444152 | H54: 328.744152
A55: 0.265 | B55: 236.5 | C55: 9.85 | D55: 327.9282355 | E55: 328.0282355 | F55: 328.1282355 | G55: 328.4282355 | H55: 328.7282355
A56: 0.27 | B56: 236.5 | C56: 9.85 | D56: 327.9282355 | E56: 328.0282355 | F56: 328.1282355 | G56: 328.4282355 | H56: 328.7282355
A57: 0.275 | B57: 236.5 | C57: 9.9 | D57: 327.912238 | E57: 328.012238 | F57: 328.112238 | G57: 328.412238 | H57: 328.712238
A58: 0.28 | B58: 236.5 | C58: 9.9 | D58: 327.912238 | E58: 328.012238 | F58: 328.112238 | G58: 328.412238 | H58: 328.712238
A59: 0.285 | B59: 236.5 | C59: 9.9 | D59: 327.912238 | E59: 328.012238 | F59: 328.112238 | G59: 328.412238 | H59: 328.712238
A60: 0.29 | B60: 236.9 | C60: 9.9 | D60: 327.912238 | E60: 328.012238 | F60: 328.112238 | G60: 328.412238 | H60: 328.712238
A61: 0.295 | B61: 236.9 | C61: 9.9 | D61: 327.912238 | E61: 328.012238 | F61: 328.112238 | G61: 328.412238 | H61: 328.712238
A62: 0.3 | B62: 237.2 | C62: 9.85 | D62: 327.9282355 | E62: 328.0282355 | F62: 328.1282355 | G62: 328.4282355 | H62: 328.7282355
A63: 0.305 | B63: 237.2 | C63: 9.85 | D63: 327.9282355 | E63: 328.0282355 | F63: 328.1282355 | G63: 328.4282355 | H63: 328.7282355
A64: 0.31 | B64: 237.2 | C64: 9.85 | D64: 327.9282355 | E64: 328.0282355 | F64: 328.1282355 | G64: 328.4282355 | H64: 328.7282355
A65: 0.315 | B65: 237.2 | C65: 9.85 | D65: 327.9282355 | E65: 328.0282355 | F65: 328.1282355 | G65: 328.4282355 | H65: 328.7282355
A66: 0.32 | B66: 237.6 | C66: 9.8 | D66: 327.944152 | E66: 328.044152 | F66: 328.144152 | G66: 328.444152 | H66: 328.744152
A67: 0.325 | B67: 237.6 | C67: 9.8 | D67: =-0.0162*C67^2+329.5 -> 327.944152 | E67: =-0.0162*C67^2+329.6 -> 328.044152 | F67: =-0.0162*C67^2+329.7 -> 328.144152 | G67: =-0.0162*C67^2+330 -> 328.444152 | H67: =-0.0162*C67^2+330.3 -> 328.744152
A68: 0.33 | B68: 238 | C68: 9.8 | D68: 327.944152 | E68: 328.044152 | F68: 328.144152 | G68: 328.444152 | H68: 328.744152
A69: 0.335 | B69: 238 | C69: 9.8 | D69: 327.944152 | E69: 328.044152 | F69: 328.144152 | G69: 328.444152 | H69: 328.744152
A70: 0.34 | B70: 238 | C70: 9.8 | D70: 327.944152 | E70: 328.044152 | F70: 328.144152 | G70: 328.444152 | H70: 328.744152
A71: 0.345 | B71: 238 | C71: 9.8 | D71: 327.944152 | E71: 328.044152 | F71: 328.144152 | G71: 328.444152 | H71: 328.744152
A72: 0.35 | B72: 238.3 | C72: 9.75 | D72: 327.9599875 | E72: 328.0599875 | F72: 328.1599875 | G72: 328.4599875 | H72: 328.7599875
A73: 0.355 | B73: 238.3 | C73: 9.75 | D73: 327.9599875 | E73: 328.0599875 | F73: 328.1599875 | G73: 328.4599875 | H73: 328.7599875
A74: 0.36 | B74: 238.3 | C74: 9.75 | D74: 327.9599875 | E74: 328.0599875 | F74: 328.1599875 | G74: 328.4599875 | H74: 328.7599875
A75: 0.365 | B75: 238.3 | C75: 9.75 | D75: 327.9599875 | E75: 328.0599875 | F75: 328.1599875 | G75: 328.4599875 | H75: 328.7599875
A76: 0.37 | B76: 238.3 | C76: 9.75 | D76: 327.9599875 | E76: 328.0599875 | F76: 328.1599875 | G76: 328.4599875 | H76: 328.7599875
A77: 0.375 | B77: 238.3 | C77: 9.75 | D77: 327.9599875 | E77: 328.0599875 | F77: 328.1599875 | G77: 328.4599875 | H77: 328.7599875
A78: 0.38 | B78: 238.3 | C78: 9.8 | D78: 327.944152 | E78: 328.044152 | F78: 328.144152 | G78: 328.444152 | H78: 328.744152
A79: 0.385 | B79: 238.3 | C79: 9.8 | D79: 327.944152 | E79: 328.044152 | F79: 328.144152 | G79: 328.444152 | H79: 328.744152
A80: 0.39 | B80: 238.3 | C80: 9.85 | D80: 327.9282355 | E80: 328.0282355 | F80: 328.1282355 | G80: 328.4282355 | H80: 328.7282355
A81: 0.395 | B81: 238.3 | C81: 9.85 | D81: 327.9282355 | E81: 328.0282355 | F81: 328.1282355 | G81: 328.4282355 | H81: 328.7282355
A82: 0.4 | B82: 238.7 | C82: 9.85 | D82: 327.9282355 | E82: 328.0282355 | F82: 328.1282355 | G82: 328.4282355 | H82: 328.7282355
A83: 0.405 | B83: 238.7 | C83: 9.85 | D83: 327.9282355 | E83: 328.0282355 | F83: 328.1282355 | G83: 328.4282355 | H83: 328.7282355
A84: 0.41 | B84: 238.7 | C84: 9.9 | D84: 327.912238 | E84: 328.012238 | F84: 328.112238 | G84: 328.412238 | H84: 328.712238
A85: 0.415 | B85: 238.7 | C85: 9.9 | D85: 327.912238 | E85: 328.012238 | F85: 328.112238 | G85: 328.412238 | H85: 328.712238
A86: 0.42 | B86: 239 | C86: 9.9 | D86: 327.912238 | E86: 328.012238 | F86: 328.112238 | G86: 328.412238 | H86: 328.712238
A87: 0.425 | B87: 239 | C87: 10 | D87: 327.88 | E87: 327.98 | F87: 328.08 | G87: 328.38 | H87: 328.68
A88: 0.43 | B88: 239 | C88: 10 | D88: 327.88 | E88: 327.98 | F88: 328.08 | G88: 328.38 | H88: 328.68
A89: 0.435 | B89: 239 | C89: 10 | D89: 327.88 | E89: 327.98 | F89: 328.08 | G89: 328.38 | H89: 328.68
A90: 0.44 | B90: 239 | C90: 10 | D90: 327.88 | E90: 327.98 | F90: 328.08 | G90: 328.38 | H90: 328.68
A91: 0.445 | B91: 239 | C91: 10 | D91: 327.88 | E91: 327.98 | F91: 328.08 | G91: 328.38 | H91: 328.68
A92: 0.45 | B92: 238.7 | C92: 10.05 | D92: 327.8637595 | E92: 327.9637595 | F92: 328.0637595 | G92: 328.3637595 | H92: 328.6637595
A93: 0.455 | B93: 238.7 | C93: 10.05 | D93: 327.8637595 | E93: 327.9637595 | F93: 328.0637595 | G93: 328.3637595 | H93: 328.6637595
A94: 0.46 | B94: 239 | C94: 10.05 | D94: 327.8637595 | E94: 327.9637595 | F94: 328.0637595 | G94: 328.3637595 | H94: 328.6637595
A95: 0.465 | B95: 239 | C95: 10.1 | D95: 327.847438 | E95: 327.947438 | F95: 328.047438 | G95: 328.347438 | H95: 328.647438
A96: 0.47 | B96: 239 | C96: 10.15 | D96: 327.8310355 | E96: 327.9310355 | F96: 328.0310355 | G96: 328.3310355 | H96: 328.6310355
A97: 0.475 | B97: 239 | C97: 10.15 | D97: 327.8310355 | E97: 327.9310355 | F97: 328.0310355 | G97: 328.3310355 | H97: 328.6310355
A98: 0.48 | B98: 239.4 | C98: 10.15 | D98: 327.8310355 | E98: 327.9310355 | F98: 328.0310355 | G98: 328.3310355 | H98: 328.6310355
A99: 0.485 | B99: 239.4 | C99: 10.15 | D99: 327.8310355 | E99: 327.9310355 | F99: 328.0310355 | G99: 328.3310355 | H99: 328.6310355
A100: 0.49 | B100: 239.8 | C100: 10.25 | D100: 327.7979875 | E100: 327.8979875 | F100: 327.9979875 | G100: 328.2979875 | H100: 328.5979875
A101: 0.495 | B101: 239.8 | C101: 10.25 | D101: 327.7979875 | E101: 327.8979875 | F101: 327.9979875 | G101: 328.2979875 | H101: 328.5979875
A102: 0.5 | B102: 240.1 | C102: 10.3 | D102: 327.781342 | E102: 327.881342 | F102: 327.981342 | G102: 328.281342 | H102: 328.581342
A103: 0.505 | B103: 240.1 | C103: 10.3 | D103: 327.781342 | E103: 327.881342 | F103: 327.981342 | G103: 328.281342 | H103: 328.581342
A104: 0.51 | B104: 240.1 | C104: 10.3 | D104: 327.781342 | E104: 327.881342 | F104: 327.981342 | G104: 328.281342 | H104: 328.581342
A105: 0.515 | B105: 240.1 | C105: 10.3 | D105: 327.781342 | E105: 327.881342 | F105: 327.981342 | G105: 328.281342 | H105: 328.581342
A106: 0.52 | B106: 240.5 | C106: 10.3 | D106: 327.781342 | E106: 327.881342 | F106: 327.981342 | G106: 328.281342 | H106: 328.581342
A107: 0.525 | B107: 240.5 | C107: 10.3 | D107: 327.781342 | E107: 327.881342 | F107: 327.981342 | G107: 328.281342 | H107: 328.581342
A108: 0.53 | B108: 240.1 | C108: 10.3 | D108: 327.781342 | E108: 327.881342 | F108: 327.981342 | G108: 328.281342 | H108: 328.581342
A109: 0.535 | B109: 240.1 | C109: 10.3 | D109: 327.781342 | E109: 327.881342 | F109: 327.981342 | G109: 328.281342 | H109: 328.581342
A110: 0.54 | B110: 240.1 | C110: 10.3 | D110: 327.781342 | E110: 327.881342 | F110: 327.981342 | G110: 328.281342 | H110: 328.581342
A111: 0.545 | B111: 240.1 | C111: 10.3 | D111: 327.781342 | E111: 327.881342 | F111: 327.981342 | G111: 328.281342 | H111: 328.581342
A112: 0.55 | B112: 240.1 | C112: 10.3 | D112: 327.781342 | E112: 327.881342 | F112: 327.981342 | G112: 328.281342 | H112: 328.581342
A113: 0.555 | B113: 240.1 | C113: 10.3 | D113: 327.781342 | E113: 327.881342 | F113: 327.981342 | G113: 328.281342 | H113: 328.581342
A114: 0.56 | B114: 240.5 | C114: 10.3 | D114: 327.781342 | E114: 327.881342 | F114: 327.981342 | G114: 328.281342 | H114: 328.581342
A115: 0.565 | B115: 240.5 | C115: 10.3 | D115: 327.781342 | E115: 327.881342 | F115: 327.981342 | G115: 328.281342 | H115: 328.581342
A116: 0.57 | B116: 240.5 | C116: 10.3 | D116: 327.781342 | E116: 327.881342 | F116: 327.981342 | G116: 328.281342 | H116: 328.581342
A117: 0.575 | B117: 240.5 | C117: 10.35 | D117: 327.7646155 | E117: 327.8646155 | F117: 327.9646155 | G117: 328.2646155 | H117: 328.5646155
A118: 0.58 | B118: 241.2 | C118: 10.35 | D118: 327.7646155 | E118: 327.8646155 | F118: 327.9646155 | G118: 328.2646155 | H118: 328.5646155
A119: 0.585 | B119: 241.2 | C119: 10.35 | D119: 327.7646155 | E119: 327.8646155 | F119: 327.9646155 | G119: 328.2646155 | H119: 328.5646155
A120: 0.59 | B120: 240.8 | C120: 10.35 | D120: 327.7646155 | E120: 327.8646155 | F120: 327.9646155 | G120: 328.2646155 | H120: 328.5646155
A121: 0.595 | B121: 240.8 | C121: 10.35 | D121: 327.7646155 | E121: 327.8646155 | F121: 327.9646155 | G121: 328.2646155 | H121: 328.5646155
A122: 0.6 | B122: 240.5 | C122: 10.35 | D122: 327.7646155 | E122: 327.8646155 | F122: 327.9646155 | G122: 328.2646155 | H122: 328.5646155
A123: 0.605 | B123: 240.5 | C123: 10.4 | D123: 327.747808 | E123: 327.847808 | F123: 327.947808 | G123: 328.247808 | H123: 328.547808
A124: 0.61 | B124: 238.7 | C124: 10.4 | D124: 327.747808 | E124: 327.847808 | F124: 327.947808 | G124: 328.247808 | H124: 328.547808
A125: 0.615 | B125: 238.7 | C125: 10.4 | D125: 327.747808 | E125: 327.847808 | F125: 327.947808 | G125: 328.247808 | H125: 328.547808
A126: 0.62 | B126: 237.2 | C126: 10.4 | D126: 327.747808 | E126: 327.847808 | F126: 327.947808 | G126: 328.247808 | H126: 328.547808
A127: 0.625 | B127: 237.2 | C127: 10.4 | D127: 327.747808 | E127: 327.847808 | F127: 327.947808 | G127: 328.247808 | H127: 328.547808
A128: 0.63 | B128: 236.9 | C128: 10.4 | D128: 327.747808 | E128: 327.847808 | F128: 327.947808 | G128: 328.247808 | H128: 328.547808
A129: 0.635 | B129: 236.9 | C129: 10.4 | D129: 327.747808 | E129: 327.847808 | F129: 327.947808 | G129: 328.247808 | H129: 328.547808
A130: 0.64 | B130: 238.3 | C130: 10.4 | D130: 327.747808 | E130: 327.847808 | F130: 327.947808 | G130: 328.247808 | H130: 328.547808
A131: 0.645 | B131: 238.3 | C131: 10.5 | D131: =-0.0162*C131^2+329.5 -> 327.71395 | E131: =-0.0162*C131^2+329.6 -> 327.81395 | F131: =-0.0162*C131^2+329.7 -> 327.91395 | G131: =-0.0162*C131^2+330 -> 328.21395 | H131: =-0.0162*C131^2+330.3 -> 328.51395
A132: 0.65 | B132: 240.5 | C132: 10.5 | D132: 327.71395 | E132: 327.81395 | F132: 327.91395 | G132: 328.21395 | H132: 328.51395
A133: 0.655 | B133: 240.5 | C133: 10.55 | D133: 327.6968995 | E133: 327.7968995 | F133: 327.8968995 | G133: 328.1968995 | H133: 328.4968995
A134: 0.66 | B134: 242.6 | C134: 10.6 | D134: 327.679768 | E134: 327.779768 | F134: 327.879768 | G134: 328.179768 | H134: 328.479768
A135: 0.665 | B135: 242.6 | C135: 10.65 | D135: 327.6625555 | E135: 327.7625555 | F135: 327.8625555 | G135: 328.1625555 | H135: 328.4625555
A136: 0.67 | B136: 243.4 | C136: 10.7 | D136: 327.645262 | E136: 327.745262 | F136: 327.845262 | G136: 328.145262 | H136: 328.445262
A137: 0.675 | B137: 243.4 | C137: 10.75 | D137: 327.6278875 | E137: 327.7278875 | F137: 327.8278875 | G137: 328.1278875 | H137: 328.4278875
A138: 0.68 | B138: 242.6 | C138: 10.75 | D138: 327.6278875 | E138: 327.7278875 | F138: 327.8278875 | G138: 328.1278875 | H138: 328.4278875
A139: 0.685 | B139: 242.6 | C139: 10.85 | D139: 327.5928955 | E139: 327.6928955 | F139: 327.7928955 | G139: 328.0928955 | H139: 328.3928955
A140: 0.69 | B140: 241.9 | C140: 10.85 | D140: 327.5928955 | E140: 327.6928955 | F140: 327.7928955 | G140: 328.0928955 | H140: 328.3928955
A141: 0.695 | B141: 241.9 | C141: 10.85 | D141: 327.5928955 | E141: 327.6928955 | F141: 327.7928955 | G141: 328.0928955 | H141: 328.3928955
A142: 0.7 | B142: 241.2 | C142: 10.95 | D142: 327.5575795 | E142: 327.6575795 | F142: 327.7575795 | G142: 328.0575795 | H142: 328.3575795
A143: 0.705 | B143: 241.2 | C143: 10.95 | D143: 327.5575795 | E143: 327.6575795 | F143: 327.7575795 | G143: 328.0575795 | H143: 328.3575795
A144: 0.71 | B144: 240.8 | C144: 11 | D144: 327.5398 | E144: 327.6398 | F144: 327.7398 | G144: 328.0398 | H144: 328.3398
A145: 0.715 | B145: 240.8 | C145: 11 | D145: 327.5398 | E145: 327.6398 | F145: 327.7398 | G145: 328.0398 | H145: 328.3398
A146: 0.72 | B146: 241.2 | C146: 11 | D146: 327.5398 | E146: 327.6398 | F146: 327.7398 | G146: 328.0398 | H146: 328.3398
A147: 0.725 | B147: 241.2 | C147: 11 | D147: 327.5398 | E147: 327.6398 | F147: 327.7398 | G147: 328.0398 | H147: 328.3398
A148: 0.73 | B148: 241.6 | C148: 11 | D148: 327.5398 | E148: 327.6398 | F148: 327.7398 | G148: 328.0398 | H148: 328.3398
A149: 0.735 | B149: 241.6 | C149: 11 | D149: 327.5398 | E149: 327.6398 | F149: 327.7398 | G149: 328.0398 | H149: 328.3398
A150: 0.74 | B150: 242.3 | C150: 11 | D150: 327.5398 | E150: 327.6398 | F150: 327.7398 | G150: 328.0398 | H150: 328.3398
A151: 0.745 | B151: 242.3 | C151: 11 | D151: 327.5398 | E151: 327.6398 | F151: 327.7398 | G151: 328.0398 | H151: 328.3398
A152: 0.75 | B152: 243 | C152: 11 | D152: 327.5398 | E152: 327.6398 | F152: 327.7398 | G152: 328.0398 | H152: 328.3398
A153: 0.755 | B153: 243 | C153: 11 | D153: 327.5398 | E153: 327.6398 | F153: 327.7398 | G153: 328.0398 | H153: 328.3398
A154: 0.76 | B154: 243 | C154: 10.95 | D154: 327.5575795 | E154: 327.6575795 | F154: 327.7575795 | G154: 328.0575795 | H154: 328.3575795
A155: 0.765 | B155: 243 | C155: 10.95 | D155: 327.5575795 | E155: 327.6575795 | F155: 327.7575795 | G155: 328.0575795 | H155: 328.3575795
A156: 0.77 | B156: 243.4 | C156: 10.95 | D156: 327.5575795 | E156: 327.6575795 | F156: 327.7575795 | G156: 328.0575795 | H156: 328.3575795
A157: 0.775 | B157: 243.4 | C157: 10.95 | D157: 327.5575795 | E157: 327.6575795 | F157: 327.7575795 | G157: 328.0575795 | H157: 328.3575795
A158: 0.78 | B158: 243.4 | C158: 10.95 | D158: 327.5575795 | E158: 327.6575795 | F158: 327.7575795 | G158: 328.0575795 | H158: 328.3575795
A159: 0.785 | B159: 243.4 | C159: 10.85 | D159: 327.5928955 | E159: 327.6928955 | F159: 327.7928955 | G159: 328.0928955 | H159: 328.3928955
A160: 0.79 | B160: 243 | C160: 10.85 | D160: 327.5928955 | E160: 327.6928955 | F160: 327.7928955 | G160: 328.0928955 | H160: 328.3928955
A161: 0.795 | B161: 243 | C161: 10.8 | D161: 327.610432 | E161: 327.710432 | F161: 327.810432 | G161: 328.110432 | H161: 328.410432
A162: 0.8 | B162: 243 | C162: 10.8 | D162: 327.610432 | E162: 327.710432 | F162: 327.810432 | G162: 328.110432 | H162: 328.410432
A163: 0.805 | B163: 243 | C163: 10.75 | D163: 327.6278875 | E163: 327.7278875 | F163: 327.8278875 | G163: 328.1278875 | H163: 328.4278875
A164: 0.81 | B164: 243 | C164: 10.65 | D164: 327.6625555 | E164: 327.7625555 | F164: 327.8625555 | G164: 328.1625555 | H164: 328.4625555
A165: 0.815 | B165: 243 | C165: 10.6 | D165: 327.679768 | E165: 327.779768 | F165: 327.879768 | G165: 328.179768 | H165: 328.479768
A166: 0.82 | B166: 243 | C166: 10.55 | D166: 327.6968995 | E166: 327.7968995 | F166: 327.8968995 | G166: 328.1968995 | H166: 328.4968995
A167: 0.825 | B167: 243 | C167: 10.5 | D167: 327.71395 | E167: 327.81395 | F167: 327.91395 | G167: 328.21395 | H167: 328.51395
A168: 0.83 | B168: 243.4 | C168: 10.45 | D168: 327.7309195 | E168: 327.8309195 | F168: 327.9309195 | G168: 328.2309195 | H168: 328.5309195
A169: 0.835 | B169: 243.4 | C169: 10.4 | D169: 327.747808 | E169: 327.847808 | F169: 327.947808 | G169: 328.247808 | H169: 328.547808
A170: 0.84 | B170: 243.4 | C170: 10.35 | D170: 327.7646155 | E170: 327.8646155 | F170: 327.9646155 | G170: 328.2646155 | H170: 328.5646155
A171: 0.845 | B171: 243.4 | C171: 10.25 | D171: 327.7979875 | E171: 327.8979875 | F171: 327.9979875 | G171: 328.2979875 | H171: 328.5979875
A172: 0.85 | B172: 243.4 | C172: 10.2 | D172: 327.814552 | E172: 327.914552 | F172: 328.014552 | G172: 328.314552 | H172: 328.614552
A173: 0.855 | B173: 243.4 | C173: 10.15 | D173: 327.8310355 | E173: 327.9310355 | F173: 328.0310355 | G173: 328.3310355 | H173: 328.6310355
A174: 0.86 | B174: 243.4 | C174: 10.1 | D174: 327.847438 | E174: 327.947438 | F174: 328.047438 | G174: 328.347438 | H174: 328.647438
A175: 0.865 | B175: 243.4 | C175: 10.1 | D175: 327.847438 | E175: 327.947438 | F175: 328.047438 | G175: 328.347438 | H175: 328.647438
A176: 0.87 | B176: 243.4 | C176: 10 | D176: 327.88 | E176: 327.98 | F176: 328.08 | G176: 328.38 | H176: 328.68
A177: 0.875 | B177: 243.4 | C177: 10 | D177: 327.88 | E177: 327.98 | F177: 328.08 | G177: 328.38 | H177: 328.68
A178: 0.88 | B178: 243.4 | C178: 10 | D178: 327.88 | E178: 327.98 | F178: 328.08 | G178: 328.38 | H178: 328.68
A179: 0.885 | B179: 243.4 | C179: 9.95 | D179: 327.8961595 | E179: 327.9961595 | F179: 328.0961595 | G179: 328.3961595 | H179: 328.6961595
A180: 0.89 | B180: 243.4 | C180: 9.95 | D180: 327.8961595 | E180: 327.9961595 | F180: 328.0961595 | G180: 328.3961595 | H180: 328.6961595
A181: 0.895 | B181: 243.4 | C181: 9.95 | D181: 327.8961595 | E181: 327.9961595 | F181: 328.0961595 | G181: 328.3961595 | H181: 328.6961595
A182: 0.9 | B182: 243.7 | C182: 9.95 | D182: 327.8961595 | E182: 327.9961595 | F182: 328.0961595 | G182: 328.3961595 | H182: 328.6961595
A183: 0.905 | B183: 243.7 | C183: 10 | D183: 327.88 | E183: 327.98 | F183: 328.08 | G183: 328.38 | H183: 328.68
A184: 0.91 | B184: 243.7 | C184: 10 | D184: 327.88 | E184: 327.98 | F184: 328.08 | G184: 328.38 | H184: 328.68
A185: 0.915 | B185: 243.7 | C185: 10.05 | D185: 327.8637595 | E185: 327.9637595 | F185: 328.0637595 | G185: 328.3637595 | H185: 328.6637595
A186: 0.92 | B186: 244.4 | C186: 10.05 | D186: 327.8637595 | E186: 327.9637595 | F186: 328.0637595 | G186: 328.3637595 | H186: 328.6637595
A187: 0.925 | B187: 244.4 | C187: 10.1 | D187: 327.847438 | E187: 327.947438 | F187: 328.047438 | G187: 328.347438 | H187: 328.647438
A188: 0.93 | B188: 244.4 | C188: 10.15 | D188: 327.8310355 | E188: 327.9310355 | F188: 328.0310355 | G188: 328.3310355 | H188: 328.6310355
A189: 0.935 | B189: 244.4 | C189: 10.25 | D189: 327.7979875 | E189: 327.8979875 | F189: 327.9979875 | G189: 328.2979875 | H189: 328.5979875
A190: 0.94 | B190: 244.4 | C190: 10.3 | D190: 327.781342 | E190: 327.881342 | F190: 327.981342 | G190: 328.281342 | H190: 328.581342
A191: 0.945 | B191: 244.4 | C191: 10.3 | D191: 327.781342 | E191: 327.881342 | F191: 327.981342 | G191: 328.281342 | H191: 328.581342
A192: 0.95 | B192: 244.8 | C192: 10.4 | D192: 327.747808 | E192: 327.847808 | F192: 327.947808 | G192: 328.247808 | H192: 328.547808
A193: 0.955 | B193: 244.8 | C193: 10.45 | D193: 327.7309195 | E193: 327.8309195 | F193: 327.9309195 | G193: 328.2309195 | H193: 328.5309195
A194: 0.96 | B194: 244.8 | C194: 10.5 | D194: 327.71395 | E194: 327.81395 | F194: 327.91395 | G194: 328.21395 | H194: 328.51395
A195: 0.965 | B195: 244.8 | C195: 10.5 | D195: =-0.0162*C195^2+329.5 -> 327.71395 | E195: =-0.0162*C195^2+329.6 -> 327.81395 | F195: =-0.0162*C195^2+329.7 -> 327.91395 | G195: =-0.0162*C195^2+330 -> 328.21395 | H195: =-0.0162*C195^2+330.3 -> 328.51395
A196: 0.97 | B196: 244.8 | C196: 10.55 | D196: 327.6968995 | E196: 327.7968995 | F196: 327.8968995 | G196: 328.1968995 | H196: 328.4968995
A197: 0.975 | B197: 244.8 | C197: 10.6 | D197: 327.679768 | E197: 327.779768 | F197: 327.879768 | G197: 328.179768 | H197: 328.479768
A198: 0.98 | B198: 245.2 | C198: 10.6 | D198: 327.679768 | E198: 327.779768 | F198: 327.879768 | G198: 328.179768 | H198: 328.479768
A199: 0.985 | B199: 245.2 | C199: 10.6 | D199: 327.679768 | E199: 327.779768 | F199: 327.879768 | G199: 328.179768 | H199: 328.479768
A200: 0.99 | B200: 245.2 | C200: 10.6 | D200: 327.679768 | E200: 327.779768 | F200: 327.879768 | G200: 328.179768 | H200: 328.479768
... 4300 more rows
